bitfinex/quotes_ETHUSD_20250630
["timestamp","ask_amount","ask_price","bid_price","bid_amount"]
[1751299385690,39.49900148,2475.7,2475.6,0.02]
[1751299386614,43.49900148,2475.7,2475.6,0.02]
[1751299386817,45.1178368,2475.7,2475.6,0.02]
[1751299387516,29.71239694,2475.7,2475.6,0.02]
[1751299388684,29.71139694,2475.7,2475.6,0.02]
[1751299388879,37.52139694,2475.7,2475.6,0.02]
[1751299392404,28.82439694,2475.7,2475.6,0.02]
[1751299392587,37.52139694,2475.7,2475.6,0.02]
[1751299395401,28.82439694,2475.7,2475.6,0.02]
[1751299395615,37.52039694,2475.7,2475.6,0.02]
[1751299395990,28.82439694,2475.7,2475.6,0.02]
[1751299396224,37.52039694,2475.7,2475.6,0.02]
[1751299399256,37.52039694,2475.7,2475.2,0.02]
[1751299399257,15.41131435,2475.3,2475.2,0.02]
[1751299399469,33.39875421,2475.3,2475.2,0.02]
[1751299399764,33.39875421,2475.3,2475.0,0.02]
[1751299399765,14.59007756,2475.2,2475.0,0.02]
[1751299399966,15.41180404,2475.0,2474.6,0.02]
[1751299400167,15.41213056,2474.8,2474.6,0.02]
[1751299400354,35.01840574,2474.8,2474.6,0.02]
[1751299400680,36.32840574,2474.8,2474.6,0.02]
[1751299401878,27.03396588,2474.8,2474.6,0.02]
[1751299402480,29.38494349,2474.8,2474.6,0.02]
[1751299402864,28.56354349,2474.8,2474.6,0.02]
[1751299403270,43.03324349,2474.8,2474.6,0.02]
[1751299403595,30.08524349,2474.8,2474.6,0.02]
[1751299403782,38.77824349,2474.8,2474.6,0.02]
[1751299404300,36.42726588,2474.8,2474.6,0.02]
[1751299404893,27.73426588,2474.8,2474.6,0.02]
[1751299405195,36.42726588,2474.8,2474.6,0.02]
[1751299406072,25.60356588,2474.8,2474.6,0.02]
[1751299406280,35.60356588,2474.8,2474.6,0.02]
[1751299406995,34.01356588,2474.8,2474.6,0.02]
[1751299407490,32.70356588,2474.8,2474.6,0.02]
[1751299407792,37.71726588,2474.8,2474.6,0.02]
[1751299407980,18.84589384,2474.7,2474.6,0.02]
[1751299408181,42.57835794,2474.7,2474.6,0.02]
[1751299408873,19.63965714,2474.6,2474.0,0.02]
[1751299409072,30.77799291,2474.6,2474.0,0.02]
[1751299409268,31.75399291,2474.6,2474.0,0.02]
[1751299409474,42.05482823,2474.6,2474.0,0.02]
[1751299409696,4.59187381,2474.1,2474.0,0.02]
[1751299409864,23.27387381,2474.1,2474.0,0.02]
[1751299410709,14.59187381,2474.1,2474.0,0.02]
[1751299410864,23.27387381,2474.1,2474.0,0.02]
[1751299411195,26.0054359,2474.1,2474.0,0.02]
[1751299413088,26.8245359,2474.1,2474.0,0.02]
[1751299413591,26.8235359,2474.1,2474.0,0.02]
[1751299414892,18.1425359,2474.1,2474.0,0.02]
[1751299415071,26.8235359,2474.1,2474.0,0.02]
[1751299416294,17.3234359,2474.1,2474.0,0.02]
[1751299416498,14.04187381,2474.1,2474.0,0.02]
[1751299416694,4.04187381,2474.1,2474.0,0.02]
[1751299416888,4.04187381,2474.1,2474.0,0.8233]
[1751299417209,14.04187381,2474.1,2474.0,0.8233]
[1751299423117,14.59187381,2474.1,2474.0,0.8233]
[1751299423278,14.59187381,2474.1,2474.0,0.02]
[1751299423279,16.4552359,2474.1,2474.0,0.02]
[1751299423483,23.2842359,2474.1,2474.0,0.02]
[1751299425709,24.1123359,2474.1,2474.0,0.02]
[1751299427984,15.9052359,2474.1,2474.0,0.02]
[1751299428219,15.89087381,2474.1,2474.0,0.02]
[1751299428727,16.44087381,2474.1,2474.0,0.02]
[1751299430512,17.24477381,2474.1,2474.0,0.02]
[1751299430814,24.07077381,2474.1,2474.0,0.02]
[1751299431823,24.06977381,2474.1,2474.0,0.02]
[1751299432020,18.80596191,2474.1,2474.0,0.02]
[1751299432221,27.47996191,2474.1,2474.0,0.02]
[1751299432520,18.80596191,2474.1,2474.0,0.02]
[1751299432719,27.47996191,2474.1,2474.0,0.02]
[1751299435123,18.80596191,2474.1,2474.0,0.02]
[1751299435321,27.47896191,2474.1,2474.0,0.02]
[1751299437405,31.73396191,2474.1,2474.0,0.02]
[1751299439730,39.64396191,2474.1,2474.0,0.02]
[1751299440899,25.91206191,2474.1,2474.0,0.02]
[1751299441100,34.57306191,2474.1,2474.0,0.02]
[1751299442602,25.91206191,2474.1,2474.0,0.02]
[1751299442825,34.57306191,2474.1,2474.0,0.02]
[1751299443226,39.61116191,2474.1,2474.0,0.02]
[1751299445740,39.61116191,2474.1,2473.0,0.2299334]
[1751299445741,0.7568,2473.3,2473.0,0.2299334]
[1751299445946,14.04350814,2473.1,2473.0,0.2299334]
[1751299446311,23.25150814,2473.1,2473.0,0.2299334]
[1751299446806,14.59350814,2473.1,2473.0,0.2299334]
[1751299447011,16.43350814,2473.1,2473.0,1.0353334]
[1751299447249,14.59350814,2473.1,2473.0,1.0353334]
[1751299447455,14.04350814,2473.1,2473.0,1.0353334]
[1751299448113,4.04350814,2473.1,2473.0,1.0353334]
[1751299448510,2.22197146,2474.0,2473.1,0.8039]
[1751299448748,4.04334465,2473.2,2473.1,0.8039]
[1751299449311,14.59334465,2473.2,2473.1,0.8039]
[1751299450730,14.59350814,2473.1,2473.0,0.2299334]
[1751299451334,14.04350814,2473.1,2473.0,0.2299334]
[1751299452550,4.04341302,2473.2,2473.1,0.8328]
[1751299452912,4.04341302,2473.2,2473.1,1.7776412]
[1751299454237,4.04341302,2473.2,2473.1,0.8328]
[1751299455244,5.40207594,2473.2,2473.1,0.8328]
[1751299456159,4.59341302,2473.2,2473.1,0.8328]
[1751299456728,4.04341302,2473.2,2473.1,0.8328]
[1751299457436,4.04341302,2473.2,2473.1,1.77935933]
[1751299457940,10.0,2473.6,2473.2,0.7886]
[1751299458130,4.04318117,2473.3,2473.2,0.7886]
[1751299464755,4.04350814,2473.1,2473.0,1.0330334]
[1751299464964,4.04350814,2473.1,2473.0,0.2299334]
[1751299465139,14.04350814,2473.1,2473.0,0.2299334]
[1751299466435,14.59350814,2473.1,2473.0,0.2299334]
[1751299466761,15.42320814,2473.1,2473.0,0.2299334]
[1751299466928,18.55454586,2473.1,2473.0,0.2299334]
[1751299467773,26.36684586,2473.1,2473.0,0.2299334]
[1751299471159,30.36684586,2473.1,2473.0,0.2299334]
[1751299471547,31.14924586,2473.1,2473.0,0.2299334]
[1751299472759,22.50724586,2473.1,2473.0,0.2299334]
[1751299472966,21.72484586,2473.1,2473.0,0.2299334]
[1751299473263,30.36584586,2473.1,2473.0,0.2299334]
[1751299473669,26.36484586,2473.1,2473.0,0.2299334]
[1751299473850,17.72484586,2473.1,2473.0,0.2299334]
[1751299474205,19.55684586,2473.1,2473.0,0.2299334]
[1751299474372,4.04350814,2473.1,2473.0,0.2299334]
[1751299474676,14.04350814,2473.1,2473.0,0.2299334]
[1751299476939,14.04350814,2473.1,2473.0,1.0160334]
[1751299478688,14.04350814,2473.1,2473.0,0.2299334]
[1751299479790,17.77401551,2473.1,2473.0,0.2299334]
[1751299481459,16.98971551,2473.1,2473.0,0.2299334]
[1751299481665,25.62671551,2473.1,2473.0,0.2299334]
[1751299483163,26.38701551,2473.1,2473.0,0.2299334]
[1751299483364,30.38701551,2473.1,2473.0,0.2299334]
[1751299486074,21.75001551,2473.1,2473.0,0.2299334]
[1751299486274,29.62471551,2473.1,2473.0,0.2299334]
[1751299486802,31.9212783,2473.1,2473.0,0.2299334]
[1751299487899,30.44811551,2473.1,2473.0,0.2299334]
[1751299488099,29.62371551,2473.1,2473.0,0.2299334]
[1751299488590,25.62371551,2473.1,2473.0,0.2299334]
[1751299488787,26.38061551,2473.1,2473.0,0.2299334]
[1751299489996,30.38061551,2473.1,2473.0,0.2299334]
[1751299491718,31.85494109,2473.1,2473.0,0.2299334]
[1751299492390,30.38061551,2473.1,2473.0,0.2299334]
[1751299492900,20.98971551,2473.1,2473.0,0.2299334]
[1751299493118,29.62171551,2473.1,2473.0,0.2299334]
[1751299493486,20.98971551,2473.1,2473.0,0.2299334]
[1751299493811,29.62171551,2473.1,2473.0,0.2299334]
[1751299494412,22.82171551,2473.1,2473.0,0.2299334]
[1751299494612,20.98971551,2473.1,2473.0,0.2299334]
[1751299494794,29.62171551,2473.1,2473.0,0.2299334]
[1751299495997,30.42011551,2473.1,2473.0,0.2299334]
[1751299499078,21.78811551,2473.1,2473.0,0.2299334]
[1751299499315,20.98971551,2473.1,2473.0,0.2299334]
[1751299499621,29.61171551,2473.1,2473.0,0.2299334]
[1751299499786,22.81371551,2473.1,2473.0,0.2299334]
[1751299500114,14.04350814,2473.1,2473.0,0.2299334]
[1751299500414,4.04350814,2473.1,2473.0,0.2299334]
[1751299501212,4.04350814,2473.1,2473.0,1.0125334]
[1751299502618,4.04350814,2473.1,2473.0,0.2299334]
[1751299502819,14.04350814,2473.1,2473.0,0.2299334]
[1751299505203,14.59350814,2473.1,2473.0,0.2299334]
[1751299505418,16.54005739,2473.1,2473.0,0.2299334]
[1751299506623,14.59350814,2473.1,2473.0,0.2299334]
[1751299508528,14.04350814,2473.1,2473.0,1.0402334]
[1751299510712,4.04350814,2473.1,2473.0,1.0402334]
[1751299513213,4.04345422,2473.2,2473.1,0.7977]
[1751299513611,4.04334465,2473.2,2473.1,0.7977]
[1751299513904,4.04328738,2473.3,2473.1,0.7977]
[1751299514107,4.04326323,2473.3,2473.1,0.7977]
[1751299514305,4.04334465,2473.2,2473.1,0.7977]
[1751299515009,4.04305469,2473.4,2473.2,0.7553]
[1751299515214,4.0430723,2473.4,2473.3,0.7743]
[1751299515410,4.04280469,2473.6,2473.3,0.7743]
[1751299515611,4.04280469,2473.6,2473.3,0.9759]
[1751299515914,4.06253563,2473.7,2473.5,0.7743]
[1751299516442,4.04269081,2473.6,2473.5,0.7743]
[1751299517402,0.02,2473.7,2473.5,0.7743]
[1751299519289,0.02,2473.7,2473.6,0.9759]
[1751299519424,0.02,2473.7,2473.6,1.47778228]
[1751299521138,0.02,2473.7,2473.6,2.41980122]
[1751299523059,4.06252738,2473.7,2473.6,2.41980122]
[1751299523347,4.06252738,2473.7,2473.6,0.9759]
[1751299524239,0.02,2473.7,2473.6,0.9759]
[1751299524461,4.06252738,2473.7,2473.6,0.9759]
[1751299524951,4.06252738,2473.7,2473.0,8.58465355]
[1751299524952,4.04334465,2473.2,2473.0,10.21868436]
[1751299525154,4.04334465,2473.2,2473.1,0.94067172]
[1751299525357,4.04334465,2473.2,2473.1,1.69367172]
[1751299526522,4.85200108,2473.2,2473.1,0.94067172]
[1751299526722,4.04350814,2473.1,2473.0,0.2299334]
[1751299528565,0.02,2473.7,2473.1,0.8003]
[1751299528763,4.04325448,2473.3,2473.2,0.2016]
[1751299528965,4.04282486,2473.6,2473.3,0.8003]
[1751299529147,4.04282486,2473.6,2473.3,1.0019]
[1751299529762,4.04282486,2473.6,2473.4,0.77849]
[1751299529959,4.06253065,2473.7,2473.4,0.77849]
[1751299530137,4.04276651,2473.6,2473.4,0.77849]
[1751299530338,4.04286795,2473.5,2473.3,7.7849]
[1751299530538,4.06264016,2473.7,2473.3,11.62646468]
[1751299530738,4.06264016,2473.7,2473.4,0.2016]
[1751299530939,0.02,2473.7,2473.4,0.2016]
[1751299531542,0.02,2473.7,2473.5,0.8117]
[1751299531839,4.06252738,2473.7,2473.6,0.50562764]
[1751299532040,4.06252738,2473.7,2473.5,0.8117]
[1751299532249,4.04269081,2473.6,2473.5,0.8117]
[1751299532664,4.06261783,2473.7,2473.5,0.8117]
[1751299532976,4.04269081,2473.6,2473.5,0.8117]
[1751299533863,4.0433851,2473.2,2473.0,2.0459334]
[1751299534056,4.0433851,2473.2,2473.1,7.18919334]
[1751299534257,4.0433851,2473.2,2473.1,6.98759334]
[1751299534563,4.0433851,2473.2,2473.1,1.72865701]
[1751299534765,4.04350814,2473.1,2473.0,0.2299334]
[1751299534942,4.04350814,2473.1,2473.0,1.17230821]
[1751299535579,4.04350814,2473.1,2473.0,0.2299334]
[1751299537802,14.59350814,2473.1,2473.0,0.2299334]
[1751299538015,17.75432737,2473.1,2473.0,0.2299334]
[1751299538303,17.75432737,2473.1,2472.3,0.01]
[1751299538304,4.04465296,2472.4,2472.3,0.01]
[1751299538462,23.42245296,2472.4,2472.3,0.01]
[1751299539600,14.82645296,2472.4,2472.3,0.95381083]
[1751299539771,14.27645296,2472.4,2472.3,0.95381083]
[1751299539967,14.04465296,2472.4,2472.3,0.95381083]
[1751299541402,14.04465296,2472.4,2472.3,0.01]
[1751299542175,14.04465296,2472.4,2472.3,0.95300976]
[1751299542366,14.04465296,2472.4,2472.3,0.01]
[1751299543906,4.04465296,2472.4,2472.3,0.01]
[1751299545407,14.04440102,2472.6,2472.3,0.01]
[1751299545572,4.04444877,2472.6,2472.3,0.01]
[1751299545881,4.04444861,2472.6,2472.3,0.01]
[1751299546270,14.04421257,2472.7,2472.3,0.01]
[1751299546483,4.04435336,2472.6,2472.3,0.01]
[1751299546688,14.04421814,2472.7,2472.3,0.49282114]
[1751299547007,1.85747596,2473.0,2472.4,4.83846199]
[1751299547171,4.04384022,2472.9,2472.4,4.83846199]
[1751299547371,15.9012339,2473.0,2472.5,4.04448838]
[1751299547688,1.85747596,2473.0,2472.6,4.54817713]
[1751299547874,1.85747596,2473.0,2472.6,0.70559884]
[1751299548274,4.0438383,2472.9,2472.6,0.70559884]
[1751299548590,4.04318117,2473.3,2472.6,0.70559884]
[1751299548910,4.04318117,2473.3,2472.6,0.2016]
[1751299548911,4.04396782,2472.9,2472.6,0.2016]
[1751299549105,4.04376047,2473.0,2472.6,0.2016]
[1751299549410,14.04301594,2473.5,2472.6,4.24578428]
[1751299549583,4.04377025,2473.0,2472.6,0.2016]
[1751299549772,4.04416225,2472.7,2472.6,0.2016]
[1751299550310,4.04448938,2472.5,2472.4,2.6109]
[1751299550805,4.04448938,2472.5,2472.3,0.01]
[1751299550806,4.04465296,2472.4,2472.3,0.01]
[1751299551380,4.04465296,2472.4,2472.3,0.95220645]
[1751299551583,4.04465296,2472.4,2472.3,0.01]
[1751299552773,4.04455688,2472.5,2472.3,0.01]
[1751299553078,4.04465296,2472.4,2472.3,0.01]
[1751299554805,4.04456505,2472.5,2472.3,0.01]
[1751299555105,4.04465296,2472.4,2472.3,0.01]
[1751299556877,4.85357476,2472.4,2472.3,0.01]
[1751299558516,5.62167476,2472.4,2472.3,0.01]
[1751299559312,4.85357476,2472.4,2472.3,0.01]
[1751299559526,4.04465296,2472.4,2472.3,0.01]
[1751299561692,4.04458034,2472.5,2472.3,0.01]
[1751299561888,4.04465296,2472.4,2472.3,0.01]
[1751299566988,4.86605296,2472.4,2472.3,0.01]
[1751299570218,4.04465296,2472.4,2472.3,0.01]
[1751299570622,4.04465296,2472.4,2472.3,1.16061852]
[1751299570797,4.04465296,2472.4,2472.3,0.2116]
[1751299571332,4.04465296,2472.4,2472.3,1.16087455]
[1751299571695,4.04465296,2472.4,2472.3,0.95927455]
[1751299575046,4.04446141,2472.6,2472.3,0.95927455]
[1751299575214,4.04449745,2472.5,2472.4,0.94927455]
[1751299575667,4.04438862,2472.6,2472.4,0.94927455]
[1751299575820,4.04438862,2472.6,2472.5,0.94927455]
[1751299583780,4.85324443,2472.6,2472.5,0.94927455]
[1751299584070,4.04465296,2472.4,2472.3,6.78]
[1751299584376,4.04465296,2472.4,2472.3,0.96020427]
[1751299586895,0.7666,2472.7,2472.3,0.96020427]
[1751299587098,4.04411307,2472.8,2472.4,1.74620427]
[1751299587383,4.04418421,2472.7,2472.5,0.95020427]
[1751299587570,4.04418421,2472.7,2472.6,0.95020427]
[1751299587954,4.04408323,2472.8,2472.6,0.95020427]
[1751299588289,4.04408323,2472.8,2472.5,7.84981003]
[1751299588290,4.0439987,2472.8,2472.7,0.95020427]
[1751299589263,0.02,2472.9,2472.8,0.8105]
[1751299589774,0.02,2472.9,2472.8,1.76050086]
[1751299590282,0.02,2472.9,2472.8,1.76049047]
[1751299590855,0.02,2472.9,2472.8,2.36112425]
[1751299591085,0.02,2472.9,2472.8,6.40512295]
[1751299591286,0.02,2472.9,2472.8,6.60672295]
[1751299591783,0.02,2472.9,2472.8,19.54131104]
[1751299592260,0.02,2472.9,2472.8,19.9185431]
[1751299592456,0.02,2472.9,2472.8,20.4685431]
[1751299592764,0.02,2472.9,2472.8,18.90382295]
[1751299592976,0.02,2472.9,2472.8,21.5546447]
[1751299593485,0.02,2473.7,2473.5,4.04271851]
[1751299593695,0.02,2473.7,2473.6,7.96727185]
[1751299593871,4.06252738,2473.7,2473.6,7.563]
[1751299594200,4.04269081,2473.6,2473.2,2.01347532]
[1751299594355,0.02,2473.7,2473.4,6.767]
[1751299594557,0.02,2473.7,2473.5,1.77585779]
[1751299594757,4.06252738,2473.7,2473.6,2.20543889]
[1751299594951,4.06252738,2473.7,2473.5,1.0306]
[1751299595370,4.04269081,2473.6,2473.5,1.0306]
[1751299595570,4.04269081,2473.6,2473.5,1.97706103]
[1751299595894,4.06254372,2473.7,2473.5,1.97706103]
[1751299595895,4.0625936,2473.7,2473.5,1.97706103]
[1751299596194,4.0625936,2473.7,2473.5,1.0306]
[1751299596689,4.04269081,2473.6,2473.5,1.0306]
[1751299596997,4.04269081,2473.6,2473.5,8.74156853]
[1751299597302,4.04269081,2473.6,2473.5,7.7956]
[1751299598093,0.02,2473.7,2473.4,6.764]
[1751299598255,4.04285425,2473.5,2473.4,6.764]
[1751299599403,4.04334465,2473.2,2473.1,0.9981]
[1751299599606,4.04334465,2473.2,2473.1,8.70774867]
[1751299599913,4.04325357,2473.3,2473.1,8.70774867]
[1751299600078,4.04297657,2473.5,2473.2,1.99702354]
[1751299600262,4.04269081,2473.6,2473.3,0.94564867]
[1751299600263,4.04279365,2473.6,2473.3,0.94564867]
[1751299600598,4.04287996,2473.5,2473.4,0.94564867]
[1751299600780,4.0430177,2473.4,2473.3,0.2016]
[1751299600981,4.04318117,2473.3,2473.2,0.94534197]
[1751299601182,4.04318117,2473.3,2473.2,7.70837789]
[1751299601370,4.04318117,2473.3,2473.2,6.763]
[1751299602366,4.04334465,2473.2,2473.1,0.2016]
[1751299602591,4.04350814,2473.1,2473.0,1.806]
[1751299602797,4.04367165,2473.0,2472.9,0.9724]
[1751299602997,4.04367165,2473.0,2472.9,8.6811797]
[1751299603414,4.81619665,2473.6,2472.9,10.81964374]
[1751299603573,4.04335097,2473.2,2473.0,0.9457797]
[1751299603770,0.7735,2473.6,2473.0,0.9457797]
[1751299603999,4.06255382,2473.7,2473.0,0.9457797]
[1751299604000,4.04313853,2473.4,2473.0,0.9457797]
[1751299604185,4.04312493,2473.4,2473.0,1.1473797]
[1751299604379,4.04320258,2473.3,2473.1,1.48634484]
[1751299606498,4.04308363,2473.4,2473.1,1.48634484]
[1751299606697,4.04285485,2473.5,2473.2,0.94561071]
[1751299606877,4.0430177,2473.4,2473.3,7.7773]
[1751299607077,4.04294837,2473.5,2473.3,8.70366448]
[1751299607488,4.04285593,2473.5,2473.3,8.70366448]
[1751299607679,4.0430177,2473.4,2473.3,8.70366448]
[1751299607900,4.04293591,2473.5,2473.3,8.70366448]
[1751299608116,4.0430177,2473.4,2473.3,8.70366448]
[1751299608515,4.04285764,2473.5,2473.3,8.70366448]
[1751299608516,4.04299535,2473.5,2473.3,8.70366448]
[1751299608689,4.04275956,2473.6,2473.4,0.87036645]
[1751299608896,0.02,2473.7,2473.4,0.87036645]
[1751299609211,4.04269478,2473.6,2473.4,0.87036645]
[1751299609513,4.04285425,2473.5,2473.4,0.87036645]
[1751299610016,4.04271472,2473.6,2473.4,0.87036645]
[1751299610312,4.06259181,2473.7,2473.5,0.95740309]
[1751299610524,4.06254373,2473.7,2473.5,0.95740309]
[1751299610811,4.04269081,2473.6,2473.5,0.95740309]
[1751299611415,0.02,2473.7,2473.5,0.95740309]
[1751299611800,4.06252927,2473.7,2473.5,0.95740309]
[1751299612205,4.06252927,2473.7,2473.4,0.87036645]
[1751299612401,4.06262006,2473.7,2473.4,0.87036645]
[1751299612807,4.0426947,2473.6,2473.4,0.87036645]
[1751299613219,4.06253439,2473.7,2473.4,0.87036645]
[1751299613590,4.04271717,2473.6,2473.4,0.87036645]
[1751299613789,4.06253439,2473.7,2473.4,0.87036645]
[1751299613990,4.04279036,2473.6,2473.4,0.87036645]
[1751299614208,4.04279036,2473.6,2473.5,1.04536665]
[1751299615016,4.04279036,2473.6,2473.3,9.5833]
[1751299615220,4.04291936,2473.5,2473.4,0.94578624]
[1751299615720,4.04285425,2473.5,2473.4,0.94578624]
[1751299616017,4.04279559,2473.6,2473.4,0.94578624]
[1751299616224,4.06261308,2473.7,2473.5,0.94578624]
[1751299616425,4.06261308,2473.7,2473.6,6.759]
[1751299617395,0.02,2473.7,2473.6,7.70590802]
[1751299617594,4.06252738,2473.7,2473.6,8.47649882]
[1751299617897,4.06252738,2473.7,2473.6,7.70590802]
[1751299620803,0.02,2473.7,2473.6,7.70590802]
[1751299621003,4.06252738,2473.7,2473.6,7.70590802]
[1751299622063,3.71252738,2473.7,2473.6,7.70590802]
[1751299622404,3.71252738,2473.7,2473.6,0.94690802]
[1751299622911,4.5676948,2473.7,2473.6,7.70290802]
[1751299623298,3.71252738,2473.7,2473.6,7.70290802]
[1751299623503,4.04318117,2473.3,2473.2,1.18246066]
[1751299623806,4.04318117,2473.3,2473.2,7.70464849]
[1751299624001,4.04318117,2473.3,2473.2,0.94864849]
[1751299624205,4.82428117,2473.3,2473.2,7.70464849]
[1751299625021,4.04318117,2473.3,2473.2,8.88710915]
[1751299625252,4.04318117,2473.3,2473.2,10.19423011]
[1751299626344,4.04318117,2473.3,2473.2,9.01176945]
[1751299626659,4.04318117,2473.3,2473.2,0.94864849]
[1751299626859,4.04318117,2473.3,2472.8,1.18246066]
[1751299626860,4.04367165,2473.0,2472.8,1.18246066]
[1751299627166,0.8317,2473.2,2472.6,1.18246066]
[1751299627167,4.04416225,2472.7,2472.6,1.18246066]
[1751299627330,4.04416225,2472.7,2472.6,8.88637477]
[1751299627517,4.04416225,2472.7,2472.6,2.13137477]
[1751299627721,4.04416225,2472.7,2472.6,8.88637477]
[1751299628157,4.04416225,2472.7,2472.6,7.70391411]
[1751299628426,4.04416225,2472.7,2472.6,8.88971611]
[1751299629063,6.15923186,2472.7,2472.6,0.94891411]
[1751299629246,16.15923186,2472.7,2472.6,0.94891411]
[1751299629829,4.04432581,2472.6,2472.5,0.02]
[1751299630054,4.86902581,2472.6,2472.5,0.02]
[1751299631245,4.04432581,2472.6,2472.5,0.02]
[1751299634673,6.10805909,2472.6,2472.5,0.02]
[1751299642385,2.06373328,2472.6,2472.5,0.8074]
[1751299642546,2.06373328,2472.6,2472.5,2.3137721]
[1751299643082,2.06373328,2472.6,2472.5,1.8074]
[1751299644195,2.06373328,2472.6,2472.5,6.7954368]
[1751299644953,2.06373328,2472.6,2472.5,2.75094742]
[1751299645279,2.06373328,2472.6,2472.5,6.7954368]
[1751299645950,2.06373328,2472.6,2472.5,2.75094742]
[1751299646150,2.06373328,2472.6,2472.5,8.08082517]
[1751299646683,2.06373328,2472.6,2472.5,4.03633579]
[1751299646882,2.06373328,2472.6,2472.5,3.24893579]
[1751299646883,6.10805909,2472.6,2472.5,3.24893579]
[1751299647088,6.10805909,2472.6,2472.5,8.71454742]
[1751299647296,6.10805909,2472.6,2472.5,1.96354742]
[1751299647473,6.10805909,2472.6,2472.5,7.771]
[1751299652785,2.06373328,2472.6,2472.5,1.02]
[1751299652985,2.06373328,2472.6,2472.5,1.798]
[1751299653186,2.06373328,2472.6,2472.5,2.74658158]
[1751299653879,2.06373328,2472.6,2472.5,3.49958158]
[1751299654123,2.06373328,2472.6,2472.5,3.70118158]
[1751299657537,6.10805909,2472.6,2472.5,3.70118158]
[1751299657742,6.10805909,2472.6,2472.5,2.17018158]
[1751299659136,6.10805909,2472.6,2472.5,8.71558158]
[1751299659297,5.10805909,2472.6,2472.5,8.71558158]
[1751299660127,5.10805909,2472.6,2472.5,9.90138358]
[1751299660853,1.06373328,2472.6,2472.5,9.90138358]
[1751299661008,5.10805909,2472.6,2472.5,11.05045198]
[1751299661427,5.10805909,2472.6,2472.5,9.90138358]
[1751299664943,1.06373328,2472.6,2472.5,9.90138358]
[1751299665938,5.10805909,2472.6,2472.5,9.90138358]
[1751299666139,1.06373328,2472.6,2472.5,9.90138358]
[1751299666437,5.10805909,2472.6,2472.5,9.90138358]
[1751299666645,5.10805909,2472.6,2472.5,11.07061198]
[1751299667243,5.10805909,2472.6,2472.5,9.88480998]
[1751299667743,5.10805909,2472.6,2472.5,9.88180998]
[1751299667951,1.06373328,2472.6,2472.5,16.31509979]
[1751299668113,1.06373328,2472.6,2472.5,25.48739936]
[1751299668763,1.06373328,2472.6,2472.5,26.52282287]
[1751299668914,1.06373328,2472.6,2472.5,26.52310561]
[1751299669615,1.06373328,2472.6,2472.5,24.93739936]
[1751299670011,1.06373328,2472.6,2472.5,25.48739936]
[1751299671111,1.06373328,2472.6,2472.5,27.83462251]
[1751299671314,1.06373328,2472.6,2472.5,25.48739936]
[1751299672646,0.01,2473.3,2473.2,4.81534465]
[1751299672953,2.48118288,2473.7,2473.2,13.59339337]
[1751299673135,2.48118288,2473.7,2473.5,4.04277756]
[1751299673313,2.48118288,2473.7,2473.6,10.78469081]
[1751299673513,2.48118288,2473.7,2473.6,12.50686515]
[1751299678060,2.48118288,2473.7,2473.6,13.69543146]
[1751299678231,2.48118288,2473.7,2473.6,15.75816518]
[1751299681749,2.48118288,2473.7,2473.6,11.71547437]
[1751299682087,2.48118288,2473.7,2473.6,8.46417434]
[1751299682547,2.48118288,2473.7,2473.6,7.69217434]
[1751299682754,6.52371026,2473.7,2473.6,0.95017434]
[1751299682949,7.29801026,2473.7,2473.6,0.95017434]
[1751299683288,3.25548288,2473.7,2473.4,6.737]
[1751299683466,4.04278532,2473.6,2473.5,7.68352358]
[1751299683658,4.04278532,2473.6,2473.5,6.737]
[1751299684256,4.04293984,2473.5,2473.2,0.2016]
[1751299684448,4.04293984,2473.5,2473.3,7.68270968]
[1751299684696,4.0427662,2473.6,2473.4,0.94670968]
[1751299684900,4.04269081,2473.6,2473.5,6.736]
[1751299685730,6.52379396,2473.7,2473.5,6.736]
[1751299686316,4.04269081,2473.6,2473.5,6.736]
[1751299686522,2.48118288,2473.7,2473.5,6.736]
[1751299686722,2.48118288,2473.7,2473.6,0.69376]
[1751299686890,2.48118288,2473.7,2473.6,1.51916]
[1751299687287,2.48118288,2473.7,2473.6,2.46533086]
[1751299687720,2.48118288,2473.7,2473.6,6.50802167]
[1751299689226,2.48118288,2473.7,2473.6,7.05802167]
[1751299689428,2.48118288,2473.7,2473.6,18.24104923]
[1751299690720,2.48118288,2473.7,2473.6,17.05802167]
[1751299691293,2.48118288,2473.7,2473.6,18.2403819]
[1751299691494,2.48118288,2473.7,2473.6,16.50802167]
[1751299691814,2.48118288,2473.7,2473.6,17.69051295]
[1751299692196,2.48118288,2473.7,2473.6,12.46533086]
[1751299692398,6.52371026,2473.7,2473.6,0.94617086]
[1751299692626,7.31491026,2473.7,2473.6,7.67917086]
[1751299693337,7.31491026,2473.7,2473.6,6.733]
[1751299693632,0.01,2473.7,2473.6,7.67945459]
[1751299694633,0.01,2473.7,2473.6,11.7221454]
[1751299694831,0.01,2473.7,2473.6,9.46947766]
[1751299695040,0.01,2473.7,2473.6,13.51216847]
[1751299695402,0.01,2473.7,2473.6,9.46947766]
[1751299695620,0.01,2473.7,2473.6,10.65196894]
[1751299695836,0.01,2473.7,2473.6,14.69465975]
[1751299696034,0.01,2473.7,2473.6,23.51216847]
[1751299696722,0.01,2473.7,2473.6,24.06216847]
[1751299697236,0.01,2473.7,2473.6,25.64692356]
[1751299698136,0.01,2473.7,2473.6,20.65392052]
[1751299698306,0.01,2473.7,2473.6,20.65430198]
[1751299698500,0.01,2473.7,2473.6,19.46947766]
[1751299699234,0.01,2473.7,2473.6,12.73647766]
[1751299699403,0.01,2473.7,2473.6,2.73647766]
[1751299699607,4.05252738,2473.7,2473.6,8.86255334]
[1751299700456,0.01,2473.7,2473.6,7.67745459]
[1751299701039,4.05252738,2473.7,2473.6,7.67745459]
[1751299701235,4.05252738,2473.7,2473.6,9.26220968]
[1751299701440,4.05252738,2473.7,2473.6,2.53120968]
[1751299701629,4.86942738,2473.7,2473.6,7.67745459]
[1751299702437,4.86942738,2473.7,2473.6,2.1331656]
[1751299702637,5.76260775,2473.7,2473.6,2.1331656]
[1751299702835,5.76260775,2473.7,2473.6,7.67645459]
[1751299703741,4.86942738,2473.7,2473.6,0.94645459]
[1751299704232,4.86942738,2473.7,2473.6,7.67645459]
[1751299704433,4.86942738,2473.7,2473.6,0.94645459]
[1751299704775,4.86942738,2473.7,2473.6,7.67645459]
[1751299705282,4.86942738,2473.7,2473.6,0.94645459]
[1751299705434,15.76260775,2473.7,2473.6,0.94645459]
[1751299705630,4.8324177,2473.4,2473.3,6.729]
[1751299705830,4.8324177,2473.4,2473.3,7.6793991]